fUSD/lending_fUSD_20250930
["ID","MTS","AMOUNT","RATE_DAILY","PERIOD"]
[388550107,1759240256380,-2264.58,0.00019178,2]
[388550108,1759240256390,-2264.58,0.00019178,2]
[388550109,1759240256399,-1642.32,0.00019178,2]
[388550110,1759240256408,-2264.58,0.00019178,2]
[388550111,1759240256418,-555.2,0.00019178,2]
[388550112,1759240256427,-2264.58,0.00019178,2]
[388550113,1759240256436,-2264.58,0.00019178,2]
[388550114,1759240256445,-2264.58,0.00019178,2]
[388550115,1759240256455,-2264.58,0.00019178,2]
[388550116,1759240256464,-2264.58,0.00019178,2]
[388550117,1759240256474,-500.0,0.00019178,2]
[388550118,1759240256483,-2264.58,0.00019178,2]
[388550119,1759240256492,-2264.58,0.00019178,2]
[388550120,1759240256500,-2264.58,0.00019178,2]
[388550121,1759240256510,-500.0,0.00019178,2]
[388550122,1759240256519,-2264.58,0.00019178,2]
[388550123,1759240256531,-2264.58,0.00019178,2]
[388550124,1759240256540,-2264.7262938,0.00019178,2]
[388550125,1759240256550,-519.38,0.00019178,2]
[388550126,1759240256559,-500.0,0.00019178,2]
[388550127,1759240256568,-502.53,0.00019178,2]
[388550128,1759240256578,-151.0,0.00019178,2]
[388550129,1759240256587,-500.0,0.00019178,2]
[388550130,1759240256596,-500.0,0.00019178,2]
[388550131,1759240256606,-500.0,0.00019178,2]
[388550132,1759240256615,-500.0,0.00019178,2]
[388550133,1759240256624,-1407.34,0.00019178,2]
[388550134,1759240256634,-1006.6,0.00019178,2]
[388550135,1759240256643,-500.0,0.00019178,2]
[388550136,1759240256653,-500.0,0.00019178,2]
[388550137,1759240256662,-500.0,0.00019178,2]
[388550138,1759240256672,-500.0,0.00019178,2]
[388550139,1759240256682,-984.15,0.00019178,2]
[388550140,1759240256691,-500.0,0.00019178,2]
[388550141,1759240256700,-500.0,0.00019178,2]
[388550142,1759240256709,-151.0,0.00019178,2]
[388550143,1759240256719,-500.0,0.00019178,2]
[388550144,1759240256728,-151.0,0.00019178,2]
[388550145,1759240256737,-500.0,0.00019178,2]
[388550146,1759240256746,-500.0,0.00019178,2]
[388550147,1759240256755,-500.0,0.00019178,2]
[388550148,1759240256765,-500.0,0.00019178,2]
[388550149,1759240256778,-151.0,0.00019178,2]
[388550150,1759240256787,-500.0,0.00019178,2]
[388550151,1759240256796,-500.0,0.00019178,2]
[388550152,1759240256805,-500.0,0.00019178,2]
[388550153,1759240256814,-500.0,0.00019178,2]
[388550154,1759240256823,-500.0,0.00019178,2]
[388550155,1759240256833,-151.0,0.00019178,2]
[388550156,1759240256843,-500.0,0.00019178,2]
[388550157,1759240256852,-500.0,0.00019178,2]
[388550158,1759240256862,-500.0,0.00019178,2]
[388550159,1759240256871,-500.0,0.00019178,2]
[388550160,1759240256881,-500.0,0.00019178,2]
[388550161,1759240256891,-500.0,0.00019178,2]
[388550162,1759240256900,-500.0,0.00019178,2]
[388550163,1759240256911,-1215.25,0.00019178,2]
[388550164,1759240256921,-500.0,0.00019178,2]
[388550165,1759240256930,-500.0,0.00019178,2]
[388550166,1759240256939,-1977.24,0.00019178,2]
[388550167,1759240256950,-500.0,0.00019178,2]
[388550168,1759240256959,-500.0,0.00019178,2]
[388550169,1759240256968,-500.0,0.00019178,2]
[388550170,1759240256977,-500.0,0.00019178,2]
[388550171,1759240256987,-500.0,0.00019178,2]
[388550172,1759240256996,-500.0,0.00019178,2]
[388550173,1759240257006,-500.0,0.00019178,2]
[388550174,1759240257016,-517.59,0.00019178,2]
[388550175,1759240257027,-2399.12,0.00019178,2]
[388550176,1759240257036,-500.0,0.00019178,2]
[388550177,1759240257046,-151.0,0.00019178,2]
[388550178,1759240257055,-1137.08,0.00019178,2]
[388550179,1759240257064,-1760.32,0.00019178,2]
[388550180,1759240257073,-500.0,0.00019178,2]
[388550181,1759240257082,-751.48,0.00019178,2]
[388550182,1759240257092,-626.59,0.00019178,2]
[388550183,1759240257101,-500.0,0.00019178,2]
[388550184,1759240257111,-906.34,0.00019178,2]
[388550185,1759240257120,-1693.84,0.00019178,2]
[388550186,1759240257130,-578.37287863,0.00019178,2]
[388550187,1759240257139,-900.53,0.00019178,2]
[388550188,1759240257148,-853.5,0.00019178,2]
[388550189,1759240257157,-500.0,0.00019178,2]
[388550190,1759240257166,-500.0,0.00019178,2]
[388550191,1759240257175,-500.0,0.00019178,2]
[388550192,1759240257184,-500.0,0.00019178,2]
[388550193,1759240257194,-2800.4,0.00019178,2]
[388550194,1759240257207,-3710.9,0.00019178,2]
[388550195,1759240257216,-780.07,0.00019178,2]
[388550196,1759240257225,-500.0,0.00019178,2]
[388550197,1759240257235,-500.0,0.00019178,2]
[388550198,1759240257246,-500.0,0.00019178,2]
[388550199,1759240257255,-500.0,0.00019178,2]
[388550200,1759240257265,-792.06,0.00019178,2]
[388550201,1759240257276,-1076.9,0.00019178,2]
[388550202,1759240257286,-151.0,0.00019178,2]
[388550203,1759240257295,-1334.02,0.00019178,2]
[388550204,1759240257304,-1098.61,0.00019178,2]
[388550205,1759240257314,-159.996179,0.00019178,2]
[388550206,1759240257324,-500.0,0.00019178,2]
[388550207,1759240257333,-544.22,0.00019178,2]
[388550208,1759240257343,-500.0,0.00019178,2]
[388550209,1759240257352,-500.0,0.00019178,2]
[388550210,1759240257361,-714.53,0.00019178,2]
[388550211,1759240257370,-3350.21,0.00019178,2]
[388550212,1759240257382,-500.0,0.00019178,2]
[388550213,1759240257393,-154.073841,0.00019178,2]
[388550214,1759240257401,-500.0,0.00019178,2]
[388550215,1759240257410,-500.0,0.00019178,2]
[388550216,1759240257420,-705.59,0.00019178,2]
[388550217,1759240257429,-840.44,0.00019178,2]
[388550218,1759240257438,-1195.98,0.00019178,2]
[388550219,1759240257447,-2690.42,0.00019178,2]
[388550220,1759240257457,-571.65,0.00019178,2]
[388550221,1759240257466,-500.0,0.00019178,2]
[388550222,1759240257475,-151.0,0.00019178,2]
[388550223,1759240257483,-500.0,0.00019178,2]
[388550224,1759240257493,-500.0,0.00019178,2]
[388550225,1759240257502,-151.0,0.00019178,2]
[388550226,1759240257511,-500.0,0.00019178,2]
[388550227,1759240257520,-500.0,0.00019178,2]
[388550228,1759240257533,-500.0,0.00019178,2]
[388550229,1759240257542,-151.575418,0.00019178,2]
[388550230,1759240257551,-500.0,0.00019178,2]
[388550231,1759240257560,-500.0,0.00019178,2]
[388550232,1759240257569,-500.0,0.00019178,2]
[388550233,1759240257578,-1726.29,0.00019178,2]
[388550234,1759240257588,-500.0,0.00019178,2]
[388550235,1759240257597,-500.0,0.00019178,2]
[388550236,1759240257606,-5086.08,0.00019178,2]
[388550237,1759240257615,-500.0,0.00019178,2]
[388550238,1759240257625,-500.0,0.00019178,2]
[388550239,1759240257634,-500.0,0.00019178,2]
[388550240,1759240257644,-4456.96,0.00019178,2]
[388550241,1759240257653,-500.0,0.00019178,2]
[388550242,1759240257662,-500.0,0.00019178,2]
[388550243,1759240257671,-500.0,0.00019178,2]
[388550244,1759240257680,-500.0,0.00019178,2]
[388550245,1759240257690,-500.0,0.00019178,2]
[388550246,1759240257700,-500.0,0.00019178,2]
[388550247,1759240257709,-500.0,0.00019178,2]
[388550248,1759240257717,-500.0,0.00019178,2]
[388550249,1759240257726,-500.0,0.00019178,2]
[388550250,1759240257736,-500.0,0.00019178,2]
[388550251,1759240257746,-500.0,0.00019178,2]
[388550252,1759240257755,-500.0,0.00019178,2]
[388550253,1759240257764,-500.0,0.00019178,2]
[388550254,1759240257773,-500.0,0.00019178,2]
[388550255,1759240257784,-500.0,0.00019178,2]
[388550256,1759240257794,-500.0,0.00019178,2]
[388550257,1759240257803,-500.0,0.00019178,2]
[388550258,1759240257812,-621.6,0.00019178,2]
[388550259,1759240257822,-500.0,0.00019178,2]
[388550260,1759240257831,-500.0,0.00019178,2]
[388550261,1759240257840,-500.0,0.00019178,2]
[388550262,1759240257850,-500.0,0.00019178,2]
[388550263,1759240257859,-500.0,0.00019178,2]
[388550264,1759240257869,-5163.16,0.00019178,2]
[388550265,1759240257878,-500.0,0.00019178,2]
[388550266,1759240257888,-237.28230293,0.00019178,2]
[388550267,1759240257897,-500.0,0.00019178,2]
[388550268,1759240257906,-500.0,0.00019178,2]
[388550269,1759240257916,-500.0,0.00019178,2]
[388550270,1759240257925,-500.0,0.00019178,2]
[388550271,1759240257934,-1240.5,0.00019178,2]
[388550272,1759240257943,-1599.6,0.00019178,2]
[388550273,1759240257952,-5656.93,0.00019178,2]
[388550274,1759240257961,-500.0,0.00019178,2]
[388550275,1759240257971,-206.68241811,0.00019178,2]
[388550276,1759240257980,-1771.49,0.00019178,2]
[388550277,1759240257990,-571.61,0.00019178,2]
[388550278,1759240257999,-596.77,0.00019178,2]
[388550279,1759240258008,-500.0,0.00019178,2]
[388550280,1759240258018,-500.0,0.00019178,2]
[388550281,1759240258028,-3534.18,0.00019178,2]
[388550282,1759240258038,-500.0,0.00019178,2]
[388550283,1759240258048,-500.0,0.00019178,2]
[388550284,1759240258057,-500.0,0.00019178,2]
[388550285,1759240258067,-500.0,0.00019178,2]
[388550286,1759240258077,-177.377123,0.00019178,2]
[388550287,1759240258086,-683.71,0.00019178,2]
[388550288,1759240258096,-500.0,0.00019178,2]
[388550289,1759240258105,-500.0,0.00019178,2]
[388550290,1759240258114,-1725.05,0.00019178,2]
[388550291,1759240258123,-500.0,0.00019178,2]
[388550292,1759240258132,-177.377123,0.00019178,2]
[388550293,1759240258140,-2792.01,0.00019178,2]
[388550294,1759240258150,-1504.84,0.00019178,2]
[388550295,1759240258159,-500.0,0.00019178,2]
[388550296,1759240258168,-1504.84,0.00019178,2]
[388550297,1759240258178,-1504.84,0.00019178,2]
[388550298,1759240258187,-1504.84,0.00019178,2]
[388550299,1759240258197,-1784.28,0.00019178,2]
[388550300,1759240258209,-1504.84,0.00019178,2]
[388550301,1759240258219,-177.377123,0.00019178,2]
[388550302,1759240258228,-1504.84,0.00019178,2]
[388550303,1759240258238,-1504.84,0.00019178,2]
[388550304,1759240258250,-500.0,0.00019178,2]
[388550305,1759240258259,-500.0,0.00019178,2]
[388550306,1759240258269,-1504.84,0.00019178,2]
[388550307,1759240258281,-1504.84,0.00019178,2]
[388550308,1759240258290,-401.17854126,0.00019178,2]
[388550309,1759240258300,-1504.84,0.00019178,2]
[388550310,1759240258309,-1504.84,0.00019178,2]
[388550311,1759240258318,-177.377123,0.00019178,2]
[388550312,1759240258327,-1504.84,0.00019178,2]
[388550313,1759240258337,-1504.84,0.00019178,2]
[388550314,1759240258346,-773.33,0.00019178,2]
[388550315,1759240258355,-1504.84,0.00019178,2]
[388550316,1759240258364,-1504.84,0.00019178,2]
[388550317,1759240258373,-1417.17,0.00019178,2]
[388550318,1759240258382,-1504.84,0.00019178,2]
[388550319,1759240258392,-500.0,0.00019178,2]
[388550320,1759240258402,-1504.84,0.00019178,2]
[388550321,1759240258412,-1504.84,0.00019178,2]
[388550322,1759240258422,-1504.84,0.00019178,2]
[388550323,1759240258434,-1504.84,0.00019178,2]
[388550324,1759240258579,-1504.84,0.00019178,2]
[388550325,1759240258591,-789.35,0.00019178,2]
[388550326,1759240258601,-1504.84,0.00019178,2]
[388550327,1759240258610,-1504.84,0.00019178,2]
[388550328,1759240258619,-1504.85641132,0.00019178,2]
[388550329,1759240258629,-500.0,0.00019178,2]
[388550330,1759240258639,-3388.02,0.00019178,2]
[388550331,1759240258648,-1267.03,0.00019178,2]
[388550332,1759240258658,-500.0,0.00019178,2]
[388550333,1759240258667,-586.61,0.00019178,2]
[388550334,1759240258677,-500.0,0.00019178,2]
[388550335,1759240258686,-982.97,0.00019178,2]
[388550336,1759240258696,-500.0,0.00019178,2]
[388550337,1759240258706,-500.0,0.00019178,2]
[388550338,1759240258715,-428.04735968,0.00019178,2]
[388550339,1759240258725,-500.0,0.00019178,2]
[388550340,1759240258735,-500.0,0.00019178,2]
[388550341,1759240258745,-2314.25,0.00019178,2]
[388550342,1759240258755,-500.0,0.00019178,2]
[388550343,1759240258765,-500.0,0.00019178,2]
[388550344,1759240258774,-1218.74,0.00019178,2]
[388550345,1759240258787,-621.59,0.00019178,2]
[388550346,1759240258798,-500.0,0.00019178,2]
[388550347,1759240258808,-500.0,0.00019178,2]
[388550348,1759240258818,-2098.99,0.00019178,2]
[388550349,1759240258827,-608.6,0.00019178,2]
[388550350,1759240258836,-517.34229457,0.00019178,2]
[388550351,1759240258846,-500.0,0.00019178,2]
[388550352,1759240258856,-155.785656,0.00019178,2]
[388550353,1759240258865,-3224.35,0.00019178,2]
[388550354,1759240258874,-1286.78,0.00019178,2]
[388550355,1759240258884,-2187.82,0.00019178,2]
[388550356,1759240258894,-500.0,0.00019178,2]
[388550357,1759240258903,-1729.31,0.00019178,2]
[388550358,1759240258913,-155.785656,0.00019178,2]
[388550359,1759240258922,-1087.68,0.00019178,2]
[388550360,1759240258931,-500.0,0.00019178,2]
[388550361,1759240258940,-155.785656,0.00019178,2]
[388550362,1759240258950,-1432.91,0.00019178,2]
[388550363,1759240258960,-1339.37,0.00019178,2]
[388550364,1759240258970,-155.785656,0.00019178,2]
[388550365,1759240258979,-500.0,0.00019178,2]
[388550366,1759240258989,-500.0,0.00019178,2]
[388550367,1759240258998,-4935.23,0.00019178,2]
[388550368,1759240259007,-500.0,0.00019178,2]
[388550369,1759240259016,-500.0,0.00019178,2]
[388550370,1759240259029,-6485.87,0.00019178,2]
[388550371,1759240259039,-982.28,0.00019178,2]
[388550372,1759240259049,-977.34,0.00019178,2]
[388550373,1759240259059,-500.0,0.00019178,2]
[388550374,1759240259068,-500.0,0.00019178,2]
[388550375,1759240259078,-640.07,0.00019178,2]
[388550376,1759240259088,-500.0,0.00019178,2]
[388550377,1759240259098,-500.0,0.00019178,2]
[388550378,1759240259107,-500.0,0.00019178,2]
[388550379,1759240259117,-4283.19,0.00019178,2]
[388550380,1759240259127,-500.0,0.00019178,2]
[388550381,1759240259136,-3484.89,0.00019178,2]
[388550382,1759240259146,-500.0,0.00019178,2]
[388550383,1759240259155,-879.58,0.00019178,2]
[388550384,1759240259165,-771.28,0.00019178,2]
[388550385,1759240259175,-500.0,0.00019178,2]
[388550386,1759240259185,-1514.61,0.00019178,2]
[388550387,1759240259195,-500.0,0.00019178,2]
[388550388,1759240259208,-642.61,0.00019178,2]
[388550389,1759240259218,-1615.18,0.00019178,2]
[388550390,1759240259228,-5250.86,0.00019178,2]
[388550391,1759240259238,-500.0,0.00019178,2]
[388550392,1759240259247,-500.0,0.00019178,2]
[388550393,1759240259256,-554.09,0.00019178,2]
[388550394,1759240259267,-4147.05,0.00019178,2]
[388550395,1759240259278,-500.0,0.00019178,2]
[388550396,1759240259288,-500.0,0.00019178,2]
[388550397,1759240259297,-500.0,0.00019178,2]
[388550398,1759240259306,-2880.85,0.00019178,2]
[388550399,1759240259317,-500.0,0.00019178,2]
[388550400,1759240259326,-1955.1,0.00019178,2]
[388550401,1759240259337,-500.0,0.00019178,2]
[388550402,1759240259347,-500.0,0.00019178,2]
[388550403,1759240259357,-4642.17,0.00019178,2]
[388550404,1759240259367,-500.0,0.00019178,2]
[388550405,1759240259377,-1140.78,0.00019178,2]
[388550406,1759240259386,-500.0,0.00019178,2]
[388550407,1759240259396,-3000.73,0.00019178,2]
[388550408,1759240259406,-500.0,0.00019178,2]
[388550409,1759240259416,-500.0,0.00019178,2]
[388550410,1759240259425,-909.25,0.00019178,2]
[388550411,1759240259435,-1566.99,0.00019178,2]
[388550412,1759240259444,-500.0,0.00019178,2]
[388550413,1759240259454,-701.03,0.00019178,2]
[388550414,1759240259464,-500.0,0.00019178,2]
[388550415,1759240259473,-500.0,0.00019178,2]
[388550416,1759240259483,-551.13,0.00019178,2]
[388550417,1759240259493,-1273.89,0.00019178,2]
[388550418,1759240259502,-614.69,0.00019178,2]
[388550419,1759240259512,-500.0,0.00019178,2]
[388550420,1759240259522,-5689.13,0.00019178,2]
[388550421,1759240259535,-316.31253928,0.00019178,2]
[388550422,1759240259544,-1076.21,0.00019178,2]
[388550423,1759240259553,-884.18,0.00019178,2]
[388550424,1759240259562,-500.0,0.00019178,2]
[388550425,1759240259572,-500.0,0.00019178,2]
[388550426,1759240259582,-3314.41,0.00019178,2]
[388550427,1759240259592,-2180.29,0.00019178,2]
[388550428,1759240259603,-3873.86,0.00019178,2]
[388550429,1759240259611,-3687.17,0.00019178,2]
[388550430,1759240259621,-913.68,0.00019178,2]
[388550431,1759240259631,-500.0,0.00019178,2]
[388550432,1759240259640,-151.0,0.00019178,2]
[388550433,1759240259649,-500.0,0.00019178,2]
[388550434,1759240259658,-659.75,0.00019178,2]
[388550435,1759240259668,-4847.84,0.00019178,2]
[388550436,1759240259676,-805.348617,0.00019178,2]
[388550437,1759240259686,-500.0,0.00019178,2]
[388550438,1759240259695,-2846.88,0.00019178,2]
[388550439,1759240259705,-152.135929,0.00019178,2]
[388550440,1759240259714,-595.256096,0.00019178,2]
[388550441,1759240259723,-805.348617,0.00019178,2]
[388550442,1759240259733,-152.135929,0.00019178,2]
[388550443,1759240259742,-3509.0,0.00019178,2]
[388550444,1759240259751,-657.41,0.00019178,2]
[388550445,1759240259761,-595.256096,0.00019178,2]
[388550446,1759240259771,-686.0,0.00019178,2]
[388550447,1759240259782,-805.348617,0.00019178,2]
[388550448,1759240259792,-152.135929,0.00019178,2]
[388550449,1759240259802,-4580.15,0.00019178,2]
[388550450,1759240259811,-152.135929,0.00019178,2]
[388550451,1759240259821,-805.348617,0.00019178,2]
[388550452,1759240259830,-2792.33,0.00019178,2]
[388550453,1759240259840,-549.1,0.00019178,2]
[388550454,1759240259849,-500.0,0.00019178,2]
[388550455,1759240259858,-215.136246,0.00019178,2]
[388550456,1759240259869,-1789.31,0.00019178,2]
[388550457,1759240259879,-215.136246,0.00019178,2]
[388550458,1759240259888,-500.0,0.00019178,2]
[388550459,1759240259897,-500.0,0.00019178,2]
[388550460,1759240259907,-684.53,0.00019178,2]
[388550461,1759240259917,-500.0,0.00019178,2]
[388550462,1759240259926,-500.0,0.00019178,2]
[388550463,1759240259935,-500.0,0.00019178,2]
[388550464,1759240259945,-595.256096,0.00019178,2]
[388550465,1759240259955,-500.0,0.00019178,2]
[388550466,1759240259964,-215.136246,0.00019178,2]
[388550467,1759240259974,-151.0,0.00019178,2]
[388550468,1759240259983,-595.256096,0.00019178,2]
[388550469,1759240259992,-500.0,0.00019178,2]
[388550470,1759240260002,-500.0,0.00019178,2]
[388550471,1759240260012,-151.0,0.00019178,2]
[388550472,1759240260022,-751.52,0.00019178,2]
[388550473,1759240260034,-4288.38,0.00019178,2]
[388550474,1759240260044,-215.136246,0.00019178,2]
[388550475,1759240260054,-500.0,0.00019178,2]
[388550476,1759240260064,-4326.28,0.00019178,2]
[388550477,1759240260074,-560.42,0.00019178,2]
[388550478,1759240260083,-151.0,0.00019178,2]
[388550479,1759240260093,-2533.68,0.00019178,2]
[388550480,1759240260103,-2033.24,0.00019178,2]
[388550481,1759240260113,-500.0,0.00019178,2]
[388550482,1759240260123,-3758.3,0.00019178,2]
[388550483,1759240260132,-650.69,0.00019178,2]
[388550484,1759240260143,-2934.06,0.00019178,2]
[388550485,1759240260152,-500.0,0.00019178,2]
[388550486,1759240260162,-500.0,0.00019178,2]
[388550487,1759240260172,-500.0,0.00019178,2]
[388550488,1759240260182,-1877.95,0.00019178,2]
[388550489,1759240260191,-532.98,0.00019178,2]
[388550490,1759240260206,-500.0,0.00019178,2]
[388550491,1759240260216,-500.0,0.00019178,2]
[388550492,1759240260226,-4173.34,0.00019178,2]
[388550493,1759240260236,-2889.91,0.00019178,2]
[388550494,1759240260246,-500.0,0.00019178,2]
[388550495,1759240260259,-500.0,0.00019178,2]
[388550496,1759240260268,-500.0,0.00019178,2]
[388550497,1759240260281,-500.0,0.00019178,2]
[388550498,1759240260291,-151.0,0.00019178,2]
[388550499,1759240260301,-500.0,0.00019178,2]
[388550500,1759240260310,-500.0,0.00019178,2]
[388550501,1759240260320,-500.0,0.00019178,2]
[388550502,1759240260329,-517.4,0.00019178,2]
[388550503,1759240260339,-500.0,0.00019178,2]
[388550504,1759240260348,-500.0,0.00019178,2]
[388550505,1759240260358,-3353.46,0.00019178,2]
[388550506,1759240260367,-151.0,0.00019178,2]
[388550507,1759240260376,-500.0,0.00019178,2]
[388550508,1759240260386,-500.0,0.00019178,2]
[388550509,1759240260395,-151.0,0.00019178,2]
[388550510,1759240260405,-3888.52,0.00019178,2]
[388550511,1759240260414,-500.0,0.00019178,2]
[388550512,1759240260423,-4877.04,0.00019178,2]
[388550513,1759240260433,-500.0,0.00019178,2]
[388550514,1759240260442,-500.0,0.00019178,2]
[388550515,1759240260451,-500.0,0.00019178,2]
[388550516,1759240260461,-500.0,0.00019178,2]
[388550517,1759240260470,-500.0,0.00019178,2]
[388550518,1759240260480,-248.082918,0.00019178,2]
[388550519,1759240260490,-3410.55,0.00019178,2]
[388550520,1759240260500,-3031.79,0.00019178,2]
[388550521,1759240260510,-2806.65,0.00019178,2]
[388550522,1759240260519,-500.0,0.00019178,2]
[388550523,1759240260533,-3132.31,0.00019178,2]
[388550524,1759240260542,-248.082918,0.00019178,2]
[388550525,1759240260552,-248.082918,0.00019178,2]
[388550526,1759240260562,-500.0,0.00019178,2]
[388550527,1759240260571,-500.0,0.00019178,2]
[388550528,1759240260580,-2707.99,0.00019178,2]
[388550529,1759240260590,-2707.99,0.00019178,2]
[388550530,1759240260599,-2100.64,0.00019178,2]
[388550531,1759240260608,-1688.46,0.00019178,2]
[388550532,1759240260617,-3411.37,0.00019178,2]
[388550533,1759240260627,-521.13,0.00019178,2]
[388550534,1759240260637,-500.0,0.00019178,2]
[388550535,1759240260646,-3419.82,0.00019178,2]
[388550536,1759240260656,-500.0,0.00019178,2]
[388550538,1759240260665,-500.0,0.00019178,2]
[388550539,1759240260675,-4003.15,0.00019178,2]
[388550540,1759240260685,-551.58,0.00019178,2]
[388550541,1759240261016,-9394.178026,0.00019178,2]
[388550542,1759240261085,-405.942172,0.00019178,2]
[388550543,1759240261094,-500.0,0.00019178,2]
[388550544,1759240261104,-417.411714,0.00019178,2]
[388550545,1759240261113,-2415.06,0.00019178,2]
[388550546,1759240261122,-500.0,0.00019178,2]
[388550547,1759240261131,-800.44,0.00019178,2]
[388550548,1759240261140,-151.0,0.00019178,2]
[388550549,1759240261149,-724.36,0.00019178,2]
[388550550,1759240261158,-342.860755,0.00019178,2]
[388550551,1759240261168,-2013.75,0.00019178,2]
[388550552,1759240261178,-2742.48,0.00019178,2]
[388550553,1759240261187,-151.0,0.00019178,2]
[388550554,1759240261199,-500.0,0.00019178,2]
[388550555,1759240261211,-248.082918,0.00019178,2]
[388550556,1759240261221,-3714.03504,0.00019178,2]
[388550557,1759240261230,-221.81018688,0.00019178,2]
[388550558,1759240261240,-500.0,0.00019178,2]
[388550559,1759240261249,-8041.96422,0.00019178,2]
[388550560,1759240261259,-4139.96,0.00019178,2]
[388550561,1759240261269,-500.0,0.00019178,2]
[388550562,1759240261280,-2166.0,0.00019178,2]
[388550563,1759240261290,-500.0,0.00019178,2]
[388550564,1759240261299,-1756.01,0.00019178,2]
[388550565,1759240261309,-1899.13,0.00019178,2]
[388550566,1759240261318,-500.0,0.00019178,2]
[388550567,1759240261328,-2473.07,0.00019178,2]
[388550568,1759240261337,-500.0,0.00019178,2]
[388550569,1759240261347,-731.53,0.00019178,2]
[388550570,1759240261357,-151.0,0.00019178,2]
[388550571,1759240261366,-500.0,0.00019178,2]
[388550572,1759240261375,-526.92,0.00019178,2]
[388550573,1759240261385,-151.0,0.00019178,2]
[388550574,1759240261395,-151.0,0.00019178,2]
[388550575,1759240261404,-500.0,0.00019178,2]
[388550576,1759240261414,-500.0,0.00019178,2]
[388550577,1759240261424,-151.0,0.00019178,2]
[388550578,1759240261433,-604.76,0.00019178,2]
[388550579,1759240261443,-3201.03,0.00019178,2]
[388550580,1759240261452,-500.0,0.00019178,2]
[388550581,1759240261463,-5238.49,0.00019178,2]
[388550582,1759240261473,-500.0,0.00019178,2]
[388550583,1759240261483,-5111.26,0.00019178,2]
[388550584,1759240261492,-500.0,0.00019178,2]
[388550585,1759240261501,-2560.34,0.00019178,2]
[388550586,1759240261511,-4640.6,0.00019178,2]
[388550587,1759240261522,-151.0,0.00019178,2]
[388550588,1759240261535,-500.0,0.00019178,2]
[388550589,1759240261545,-500.0,0.00019178,2]
[388550590,1759240261554,-500.0,0.00019178,2]
[388550591,1759240261564,-500.0,0.00019178,2]
[388550592,1759240261574,-500.0,0.00019178,2]
[388550593,1759240261583,-1545.67,0.00019178,2]
[388550594,1759240261593,-500.0,0.00019178,2]
[388550595,1759240261603,-500.0,0.00019178,2]
[388550596,1759240261613,-4031.72,0.00019178,2]
[388550597,1759240261622,-500.0,0.00019178,2]
[388550598,1759240261632,-311.809884,0.00019178,2]
[388550599,1759240261641,-500.0,0.00019178,2]
[388550600,1759240261651,-500.0,0.00019178,2]
[388550601,1759240261661,-1154.63,0.00019178,2]
[388550602,1759240261671,-311.809884,0.00019178,2]
[388550603,1759240261680,-1918.23,0.00019178,2]
[388550604,1759240261690,-151.0,0.00019178,2]
[388550605,1759240261700,-883.02,0.00019178,2]
[388550606,1759240261710,-2339.41,0.00019178,2]
[388550607,1759240261719,-500.0,0.00019178,2]